bitfinex-derivatives/quotes_SOLF0:USTF0_20250109
["timestamp","ask_amount","ask_price","bid_price","bid_amount"]
[1736403851863,6.47855625,194.35,194.22,1.5105]
[1736403852064,6.47855625,194.35,194.32,2.5742]
[1736403852268,6.47855625,194.35,194.28,6.47855625]
[1736403852560,6.47855625,194.35,194.32,2.5742]
[1736403853160,6.47855625,194.35,194.3,2.5743]
[1736403853358,6.47855625,194.35,194.29,6.47855625]
[1736403853561,6.47855625,194.33,194.24,2.94]
[1736403853759,6.47855625,194.29,194.22,1.5105]
[1736403853959,6.47855625,194.29,194.22,7.98905625]
[1736403854162,6.47855625,194.29,194.25,2.5751]
[1736403854363,6.47855625,194.29,194.22,6.47855625]
[1736403855067,6.47855625,194.29,194.24,2.5751]
[1736403855767,6.47855625,194.27,194.24,2.5751]
[1736403856069,6.47855625,194.27,194.25,2.5751]
[1736403856270,1.4702,194.32,194.25,2.5751]
[1736403856468,6.47855625,194.29,194.25,2.5751]
[1736403856667,6.47855625,194.29,194.22,6.47855625]
[1736403856864,6.47855625,194.29,194.23,2.5753]
[1736403857163,1.4702,194.32,194.23,2.5753]
[1736403857369,6.47855625,194.27,194.23,2.5753]
[1736403858165,6.47855625,194.27,194.24,2.5752]
[1736403859670,6.47855625,194.29,194.26,2.575]
[1736403859971,1.5432,194.35,194.25,6.47855625]
[1736403860161,6.47855625,194.32,194.25,6.47855625]
[1736403860366,6.47855625,194.3,194.27,2.5748]
[1736403861270,6.47855625,194.32,194.25,6.47855625]
[1736403862471,6.47855625,194.32,194.3,2.5744]
[1736403863372,1.5432,194.35,194.28,2.94]
[1736403863571,8.02175625,194.35,194.28,2.94]
[1736403864271,6.47855625,194.35,194.29,6.47855625]
[1736403864472,6.47855625,194.35,194.34,2.5739]
[1736403864669,6.47855625,194.35,194.29,6.47855625]
[1736403865175,6.47855625,194.33,194.28,2.94]
[1736403865674,6.47855625,194.33,194.3,2.5743]
[1736403866275,6.47855625,194.33,194.28,2.94]
[1736403866576,6.47855625,194.33,194.31,2.5743]
[1736403866776,6.47855625,194.33,194.28,2.94]
[1736403867276,6.47855625,194.33,194.28,2.5746]
[1736403867578,6.47855625,194.31,194.27,2.94]
[1736403867875,6.47855625,194.31,194.28,2.5747]
[1736403868377,6.47855625,194.31,194.27,2.94]
[1736403868677,6.47855625,194.31,194.28,2.5746]
[1736403868874,6.47855625,194.31,194.25,9.41855625]
[1736403869376,6.47855625,194.33,194.27,6.47855625]
[1736403869778,6.47855625,194.33,194.31,2.5742]
[1736403869974,5.143,194.64,194.29,6.47855625]
[1736403870278,6.47855625,194.39,194.31,9.41855625]
[1736403870478,6.47855625,194.39,194.32,2.94]
[1736403870669,6.47855625,194.37,194.32,2.94]
[1736403870871,8.5209,194.44,194.38,2.5734]
[1736403871075,6.47855625,194.39,194.38,2.5734]
[1736403871277,10.17095037,194.43,194.38,2.5734]
[1736403871579,12.74365037,194.43,194.38,2.5734]
[1736403871980,3.0083,194.44,194.32,2.94]
[1736403872181,3.0083,194.44,194.41,2.5729]
[1736403873980,3.0083,194.44,194.37,2.94]
[1736403874186,10.17095037,194.45,194.37,2.94]
[1736403874588,10.17095037,194.45,194.4,2.5731]
[1736403875686,12.74345037,194.45,194.37,2.94]
[1736403875892,10.17095037,194.45,194.37,2.94]
[1736403876688,10.17095037,194.45,194.34,10.17095037]
[1736403876882,10.17095037,194.45,194.35,2.94]
[1736403877086,10.17095037,194.45,194.41,2.5729]
[1736403877388,10.17095037,194.45,194.35,2.94]
[1736403877585,10.17095037,194.48,194.35,2.94]
[1736403877785,13.11095037,194.48,194.44,2.5726]
[1736403878592,10.17095037,194.45,194.41,2.573]
[1736403879192,5.5123,194.47,194.35,2.94]
[1736403881092,2.94,194.47,194.35,2.94]
[1736403882293,2.5726,194.44,194.35,2.94]
[1736403884195,2.5726,194.44,194.39,2.5732]
[1736403889804,2.5728,194.43,194.38,2.5734]
[1736403890103,12.74375037,194.43,194.38,2.5734]
[1736403893207,12.74375037,194.43,194.39,2.5733]
[1736403893401,6.50921222,194.41,194.39,2.5733]
[1736403900115,2.5724,194.46,194.41,2.5729]
[1736403900311,6.50921222,194.44,194.36,6.50921222]
[1736403901718,6.50921222,194.44,194.4,2.573]
[1736403902115,9.08181222,194.44,194.4,2.573]
[1736403902412,6.50921222,194.42,194.36,6.50921222]
[1736403902620,6.50921222,194.42,194.38,2.5733]
[1736403902814,9.08211222,194.42,194.38,2.5733]
[1736403904522,6.50921222,194.42,194.38,2.5733]
[1736403904710,6.50921222,194.42,194.34,9.42921222]
[1736403904916,6.50921222,194.44,194.36,6.50921222]
[1736403905617,6.50921222,194.45,194.38,6.50921222]
[1736403905815,9.08131222,194.48,194.4,6.50921222]
[1736403906216,6.50921222,194.48,194.44,2.5726]
[1736403907815,178.22259933,194.58,194.42,6.50921222]
[1736403908021,6.50921222,194.5,194.42,6.50921222]
[1736403908219,6.50921222,194.5,194.44,6.50921222]
[1736403908421,6.50921222,194.5,194.42,6.50921222]
[1736403908612,6.50921222,194.48,194.4,6.50921222]
[1736403909117,6.50921222,194.46,194.42,2.5728]
[1736403909319,6.50921222,194.44,194.38,6.50921222]
[1736403909522,6.50921222,194.44,194.39,2.5732]
[1736403910418,6.50921222,194.42,194.38,2.5734]
[1736403911313,6.50921222,194.42,194.37,2.5735]
[1736403911314,9.08211222,194.42,194.37,2.5735]
[1736403911518,6.50921222,194.42,194.37,2.5735]
[1736403913617,6.50921222,194.44,194.36,9.42921222]
[1736403915224,6.50921222,194.44,194.39,2.5731]
[1736403917026,6.50921222,194.42,194.39,2.5731]
[1736403918919,6.50921222,194.42,194.4,2.5731]
[1736403919426,6.50921222,194.42,194.36,9.42921222]
[1736403921223,6.50921222,194.42,194.39,2.5732]
[1736403922222,6.50921222,194.42,194.36,9.42921222]
[1736403922427,6.50921222,194.42,194.4,2.5731]
[1736403922622,9.08181222,194.44,194.4,2.5731]
[1736403922929,6.50921222,194.44,194.38,6.50921222]
[1736403923228,6.50921222,194.47,194.4,6.50921222]
[1736403923424,1.4926,194.51,194.36,2.92]
[1736403923621,6.50921222,194.49,194.42,6.50921222]
[1736403923823,9.08121222,194.49,194.44,2.5726]
[1736403924021,6.50921222,194.49,194.42,6.50921222]
[1736403924734,6.50921222,194.49,194.44,2.5725]
[1736403925634,9.08121222,194.49,194.44,2.5725]
[1736403926535,6.50921222,194.47,194.41,2.92]
[1736403926830,6.50921222,194.45,194.41,2.92]
[1736403927024,6.50921222,194.45,194.38,2.92]
[1736403927224,6.50921222,194.43,194.37,6.50921222]
[1736403927429,6.50921222,194.4,194.34,7.14849565]
[1736403927629,9.42921222,194.4,194.34,7.14849565]
[1736403927832,9.42921222,194.4,194.36,2.5736]
[1736403928631,9.42921222,194.4,194.38,2.5733]
[1736403928833,2.92,194.4,194.38,2.5733]
[1736403929336,2.92,194.4,194.39,2.5733]
[1736403930635,2.92,194.4,194.35,6.50921222]
[1736403930636,6.50921222,194.42,194.4,2.5731]
[1736403930835,9.44921222,194.44,194.37,6.50921222]
[1736403931035,2.94,194.44,194.39,6.50921222]
[1736403931932,2.94,194.44,194.41,2.5729]
[1736403932138,2.94,194.44,194.39,6.50921222]
[1736403933831,9.44921222,194.44,194.41,2.5729]
[1736403934439,2.94,194.44,194.42,2.5728]
[1736403935045,8.06291222,194.46,194.42,2.5728]
[1736403937339,10.63521222,194.46,194.42,2.5728]
[1736403940949,8.06291222,194.46,194.43,2.5726]
[1736403941151,6.50921222,194.46,194.39,6.50921222]
[1736403941448,9.44921222,194.48,194.41,6.50921222]
[1736403942248,9.44921222,194.48,194.45,2.5725]
[1736403943646,6.50921222,194.48,194.45,2.5725]
[1736403944155,6.50921222,194.46,194.43,2.5726]
[1736403945655,6.50921222,194.46,194.39,6.50921222]
[1736403945856,6.50921222,194.46,194.44,2.5726]
[1736403946353,6.50921222,194.46,194.39,6.50921222]
[1736403947751,6.50921222,194.46,194.41,2.573]
[1736403947956,6.50921222,194.46,194.39,6.50921222]
[1736403948255,6.50921222,194.46,194.43,2.5726]
[1736403952059,9.08131222,194.48,194.44,2.5725]
[1736403955857,2.5722,194.47,194.44,2.5725]
[1736403956861,9.08141222,194.47,194.43,2.5727]
[1736403959558,9.08171222,194.45,194.41,2.5729]
[1736403960063,6.50921222,194.45,194.42,2.5728]
[1736403961163,6.50921222,194.45,194.39,6.50921222]
[1736403961363,9.08171222,194.45,194.41,2.573]
[1736403961662,6.50921222,194.45,194.41,2.573]
[1736403961962,2.5726,194.44,194.4,2.5731]
[1736403962160,6.50921222,194.43,194.4,2.5731]
[1736403964664,6.50921222,194.45,194.38,6.50921222]
[1736403964960,6.50921222,194.45,194.4,6.50921222]
[1736403965165,6.50921222,194.45,194.42,2.5728]
[1736403967864,6.50921222,194.45,194.4,2.573]
[1736403968065,6.50921222,194.45,194.38,6.50921222]
[1736403969266,6.50921222,194.45,194.41,2.5729]
[1736403969469,6.50921222,194.46,194.38,6.50921222]
[1736403971368,6.50921222,194.46,194.42,2.5728]
[1736403971870,9.08161222,194.46,194.41,2.573]
[1736403972367,6.50921222,194.44,194.36,6.50921222]
[1736403972575,6.50921222,194.42,194.38,2.5733]
[1736403973773,6.50921222,194.42,194.36,6.50921222]
[1736403973967,6.50921222,194.42,194.39,2.5733]
[1736403974168,6.50921222,194.42,194.32,12.59155189]
[1736403974469,6.50921222,194.4,194.36,2.5735]
[1736403974874,6.50921222,194.4,194.37,2.5735]
[1736403979278,6.50921222,194.4,194.33,9.42921222]
[1736403979483,9.08211222,194.42,194.38,2.5734]
[1736403984185,2.5725,194.45,194.35,6.50921222]
[1736403984385,6.50921222,194.45,194.39,6.50921222]
[1736403984577,2.92,194.46,194.39,6.50921222]
[1736403984982,6.50921222,194.45,194.39,6.50921222]
[1736403985184,8.01981222,194.47,194.39,6.50921222]
[1736403985384,1.5106,194.47,194.41,6.50921222]
[1736403986076,6.50921222,194.48,194.41,6.50921222]
[1736403986881,6.50921222,194.48,194.43,2.5727]
[1736403987085,6.50921222,194.48,194.41,6.50921222]
[1736403987587,6.50921222,194.46,194.39,6.50921222]
[1736403987886,6.50921222,194.44,194.37,6.50921222]
[1736403988087,6.50921222,194.44,194.39,2.5732]
[1736403988281,6.50921222,194.42,194.35,6.50921222]
[1736403988477,2.92,194.49,194.32,28.59398262]
[1736403988478,6.50921222,194.4,194.33,9.42921222]
[1736403990087,9.08231222,194.4,194.35,2.5738]
[1736403990587,6.50921222,194.38,194.31,9.42921222]
[1736403990988,6.50921222,194.38,194.33,2.5739]
[1736403990989,9.08261222,194.38,194.33,2.5739]
[1736403991585,6.50921222,194.36,194.31,9.08341222]
[1736403991888,6.50921222,194.36,194.31,2.5742]
[1736403992285,6.50921222,194.36,194.29,9.42921222]
[1736403992592,6.50921222,194.36,194.32,2.5741]
[1736403992887,6.50921222,194.36,194.31,6.50921222]
[1736403993192,6.50921222,194.36,194.33,2.574]
[1736403995886,6.50921222,194.36,194.31,6.50921222]
[1736403996091,6.50921222,194.34,194.29,6.50921222]
[1736403996293,6.50921222,194.34,194.28,3.69820986]
[1736403997089,6.50921222,194.34,194.3,2.5744]
[1736403997590,6.50921222,194.34,194.27,6.50921222]
[1736403997790,9.08311222,194.34,194.27,6.50921222]
[1736403999093,9.08311222,194.34,194.29,2.5745]
[1736404000295,6.50921222,194.34,194.3,2.5744]
[1736404001295,6.50921222,194.34,194.27,6.50921222]
[1736404001493,6.50921222,194.34,194.31,2.5743]
[1736404003996,6.50921222,194.34,194.3,2.5744]
[1736404004998,6.50921222,194.32,194.3,2.5744]
[1736404006893,6.50921222,194.32,194.29,2.5746]
[1736404007098,6.50921222,194.3,194.23,9.40921222]
[1736404007302,6.50921222,194.3,194.23,6.50921222]
[1736404008694,6.50921222,194.3,194.26,2.5749]
[1736404009194,1.5889,194.33,194.21,6.50921222]
[1736404009195,6.50921222,194.28,194.21,6.50921222]
[1736404009904,6.50921222,194.28,194.17,1.4919]
[1736404010104,6.50921222,194.28,194.2,6.50921222]
[1736404010401,6.50921222,194.28,194.23,2.5753]
[1736404010904,6.50921222,194.26,194.23,2.5753]
[1736404011499,6.50921222,194.26,194.22,2.5755]
[1736404012308,6.50921222,194.24,194.18,6.50921222]
[1736404012795,6.50921222,194.24,194.18,2.576]
[1736404012994,6.50921222,194.24,194.18,6.50921222]
[1736404014205,6.50921222,194.24,194.2,2.5756]
[1736404014502,6.50921222,194.27,194.2,6.50921222]
[1736404014697,6.50921222,194.27,194.24,2.5752]
[1736404017199,2.9,194.29,194.22,6.50921222]
[1736404017402,2.9,194.29,194.2,2.9]
[1736404017403,6.50921222,194.3,194.24,6.50921222]
[1736404019104,6.50921222,194.3,194.28,2.5746]
[1736404019399,6.50921222,194.3,194.24,6.50921222]
[1736404019606,9.40921222,194.32,194.24,6.50921222]
[1736404021106,6.50921222,194.32,194.24,6.50921222]
[1736404021502,6.50921222,194.32,194.29,2.5746]
[1736404024106,6.50921222,194.32,194.31,2.5743]
[1736404024307,6.50921222,194.36,194.28,9.40921222]
[1736404024511,6.50921222,194.36,194.3,6.50921222]
[1736404024806,6.50921222,194.38,194.3,6.50921222]
[1736404025913,6.50921222,194.38,194.32,6.50921222]
[1736404026905,6.50921222,194.38,194.36,2.5736]
[1736404027112,6.50921222,194.4,194.34,2.9]
[1736404027513,6.50921222,194.4,194.35,2.5737]
[1736404027907,6.50921222,194.4,194.36,2.5736]
[1736404028107,6.50921222,194.38,194.36,2.5736]
[1736404028313,6.50921222,194.38,194.32,6.50921222]
[1736404028514,6.50921222,194.38,194.33,2.9]
[1736404030219,6.50921222,194.38,194.36,2.5736]
[1736404030414,6.50921222,194.38,194.33,2.9]
[1736404030813,6.50921222,194.4,194.33,2.9]
[1736404033020,6.50921222,194.4,194.34,6.50921222]
[1736404033221,6.50921222,194.42,194.36,6.50921222]
[1736404035319,6.50921222,194.44,194.38,6.50921222]
[1736404035621,6.50921222,194.44,194.41,2.5729]
[1736404040124,8.08491222,194.46,194.42,2.5728]
[1736404040419,1.5032,194.47,194.4,6.50921222]
[1736404040824,1.5032,194.47,194.43,2.5727]
[1736404042023,1.5032,194.47,194.4,6.50921222]
[1736404042024,6.50921222,194.46,194.41,2.5729]
[1736404042724,6.50921222,194.46,194.41,5.4729]
[1736404045127,6.50921222,194.46,194.41,2.5729]
[1736404046420,9.08161222,194.46,194.41,2.5729]
[1736404047630,6.50921222,194.44,194.4,2.9]
[1736404047829,6.50921222,194.42,194.31,191.6886]
[1736404048033,6.50921222,194.4,194.34,6.50921222]
[1736404048438,6.50921222,194.4,194.36,2.5735]
[1736404048740,6.50921222,194.38,194.31,197.50921222]
[1736404048924,9.08261222,194.38,194.33,2.574]
[1736404049231,2.9,194.41,194.31,6.50921222]
[1736404049232,6.50921222,194.36,194.31,6.50921222]
[1736404049433,6.50921222,194.38,194.34,2.5739]
[1736404049632,2.9,194.37,194.34,2.5739]
[1736404053231,2.9,194.37,194.31,6.50921222]
[1736404053435,6.50921222,194.36,194.33,2.5741]
[1736404055328,6.50921222,194.36,194.31,6.50921222]
[1736404055538,6.50921222,194.32,194.27,3.69839805]
[1736404055831,9.40921222,194.32,194.27,3.69839805]
[1736404056232,9.40921222,194.32,194.26,2.575]
[1736404058129,6.50921222,194.32,194.26,6.50921222]
[1736404058330,6.50921222,194.34,194.28,6.50921222]
[1736404058935,6.50921222,194.34,194.29,2.5745]
[1736404059830,6.50921222,194.34,194.26,6.50921222]
[1736404060533,6.50921222,194.32,194.26,6.50921222]
[1736404060729,6.50921222,194.32,194.22,2.9]
[1736404060935,2.5741,194.33,194.19,1.5442]
[1736404060936,6.50921222,194.3,194.24,6.50921222]
[1736404062036,6.50921222,194.3,194.25,2.5751]
[1736404062238,6.50921222,194.3,194.24,6.50921222]
[1736404062434,6.50921222,194.32,194.24,6.50921222]
[1736404062734,6.50921222,194.32,194.26,6.50921222]
[1736404063534,6.50921222,194.32,194.27,2.5748]
[1736404064237,6.50921222,194.32,194.28,2.5747]
[1736404070245,9.08341222,194.32,194.26,9.08421222]
[1736404070436,6.50921222,194.32,194.24,6.50921222]
[1736404070637,6.50921222,194.3,194.22,6.50921222]
[1736404071033,9.08371222,194.3,194.24,2.5752]
[1736404071239,6.50921222,194.31,194.24,6.50921222]
[1736404073146,6.50921222,194.31,194.23,9.40921222]
[1736404073449,2.5745,194.3,194.23,9.40921222]
[1736404074646,6.50921222,194.31,194.27,2.5748]
[1736404076847,6.50921222,194.31,194.25,6.50921222]
[1736404077048,9.08361222,194.31,194.26,2.575]
[1736404077748,9.08381222,194.29,194.25,2.5751]
[1736404078149,6.50921222,194.29,194.23,9.40921222]
[1736404078352,9.08361222,194.31,194.26,2.575]
[1736404078547,9.08361222,194.31,194.23,9.40921222]
[1736404079045,9.08361222,194.31,194.25,2.5751]
[1736404079350,9.08361222,194.31,194.23,9.40921222]
[1736404081351,9.08361222,194.31,194.26,2.5749]
[1736404083356,9.08361222,194.31,194.27,2.5748]
[1736404083651,3.0538,194.33,194.27,6.50921222]
[1736404083864,3.0538,194.33,194.29,6.50921222]
[1736404084063,1.5398,194.33,194.32,2.5742]
[1736404084255,6.50921222,194.36,194.29,6.50921222]
[1736404084753,6.50921222,194.36,194.32,2.5742]
[1736404084953,9.08291222,194.36,194.32,2.5742]
[1736404087358,2.5738,194.35,194.32,2.5742]
[1736404087961,9.08291222,194.36,194.32,2.5742]
[1736404090265,6.50921222,194.36,194.33,2.574]
[1736404091059,9.08291222,194.36,194.29,6.50921222]
[1736404091260,9.08291222,194.36,194.32,2.5742]
[1736404091564,9.08291222,194.36,194.29,6.50921222]
[1736404091565,6.50921222,194.36,194.29,6.50921222]
[1736404091767,2.5738,194.35,194.31,2.5743]
[1736404098865,2.5738,194.35,194.29,6.50921222]
[1736404099068,2.5738,194.35,194.32,2.5742]
[1736404101072,6.50921222,194.36,194.29,6.50921222]
[1736404101770,9.08291222,194.36,194.32,2.5741]
[1736404101972,6.50921222,194.36,194.29,6.50921222]
[1736404103770,6.50921222,194.38,194.35,2.5738]
[1736404104070,6.50921222,194.4,194.35,2.5738]
[1736404105073,9.08231222,194.4,194.35,2.5738]
[1736404105568,6.50921222,194.4,194.35,2.5738]
[1736404105971,6.50921222,194.38,194.33,5.474]
[1736404106875,9.08261222,194.38,194.33,5.474]
[1736404110174,9.08261222,194.38,194.34,2.5739]
[1736404111381,6.50921222,194.38,194.35,2.5737]
[1736404112780,6.50921222,194.38,194.34,2.5739]
[1736404114182,9.08261222,194.38,194.34,2.5739]
[1736404114380,3.1843,194.42,194.36,2.5736]
[1736404114586,6.50921222,194.39,194.36,2.5736]
[1736404120384,6.50921222,194.39,194.37,2.5735]
[1736404123986,6.50921222,194.39,194.33,2.9]
[1736404124187,6.50921222,194.39,194.36,2.5736]
[1736404130992,6.50921222,194.37,194.31,2.9]
[1736404131199,6.50921222,194.35,194.28,6.50921222]
[1736404131495,6.50921222,194.35,194.27,9.40921222]
[1736404132200,9.08311222,194.35,194.3,2.5744]
[1736404132401,6.50921222,194.33,194.27,2.9]
[1736404132997,6.50921222,194.33,194.3,2.5744]
[1736404135302,6.50921222,194.34,194.3,2.5744]
[1736404137200,6.50921222,194.37,194.33,2.574]
[1736404137897,6.50921222,194.37,194.34,2.5738]
[1736404138099,6.50921222,194.39,194.32,9.40921222]
[1736404138299,6.50921222,194.41,194.34,6.50921222]
[1736404138803,3.1843,194.42,194.34,6.50921222]
[1736404139201,6.50921222,194.4,194.38,2.5733]
[1736404139602,6.50921222,194.4,194.34,6.50921222]
[1736404139803,6.50921222,194.4,194.37,2.5735]
[1736404145401,6.50921222,194.4,194.34,6.50921222]
[1736404145602,6.50921222,194.44,194.38,6.50921222]
[1736404145805,6.50921222,194.45,194.38,6.50921222]
[1736404147208,3.0125,194.48,194.38,6.50921222]
[1736404147411,6.50921222,194.47,194.4,6.50921222]
[1736404147711,6.50921222,194.45,194.37,2.9]
[1736404147906,6.50921222,194.45,194.39,6.50921222]
[1736404149109,9.08171222,194.45,194.4,2.5731]
[1736404149512,6.50921222,194.47,194.39,6.50921222]
[1736404149706,3.0125,194.48,194.43,6.50921222]
[1736404149910,5.48620513,194.49,194.43,9.40921222]
[1736404151209,5.48620513,194.49,194.46,2.5723]
[1736404153115,6.50921222,194.48,194.44,2.9]
[1736404154012,6.50921222,194.48,194.43,2.5727]
[1736404154212,9.08131222,194.48,194.43,2.5727]
[1736404155114,2.5723,194.46,194.41,9.08221222]
[1736404155414,9.08151222,194.46,194.41,9.08221222]
[1736404158316,6.50921222,194.46,194.41,6.50921222]
[1736404158517,2.5725,194.45,194.41,6.50921222]
[1736404160116,2.5725,194.45,194.41,9.08221222]
[1736404160318,2.5725,194.45,194.41,2.573]
[1736404160814,6.50921222,194.44,194.39,9.40921222]
[1736404161016,6.50921222,194.44,194.37,6.50921222]
[1736404161517,2.573,194.41,194.36,5.4736]
[1736404163512,2.573,194.41,194.36,2.9]
[1736404163716,2.573,194.41,194.37,2.5735]
[1736404165322,2.573,194.41,194.36,2.5736]
[1736404165823,9.08211222,194.42,194.35,9.40921222]
[1736404166017,6.50921222,194.42,194.38,2.5733]
[1736404166216,6.50921222,194.44,194.37,6.50921222]
[1736404166421,9.08191222,194.44,194.37,6.50921222]
[1736404167223,9.08191222,194.44,194.39,2.5732]
[1736404168323,2.5728,194.43,194.39,2.5732]
[1736404170120,6.50921222,194.44,194.37,6.50921222]
[1736404170324,5.48620513,194.49,194.41,6.50921222]
[1736404170523,5.48620513,194.49,194.43,6.50921222]
[1736404170824,8.05820513,194.49,194.46,2.5723]
[1736404171025,14.56741735,194.49,194.46,2.5723]
[1736404171424,5.48620513,194.49,194.46,2.5723]
[1736404172629,8.05810513,194.49,194.46,2.5723]
[1736404173332,8.05810513,194.49,194.45,2.5725]
[1736404176731,5.48620513,194.49,194.43,6.50921222]
[1736404176931,2.5721,194.48,194.44,2.5726]
[1736404179534,2.5721,194.48,194.43,9.08191222]
[1736404179836,2.5722,194.47,194.43,2.5727]
[1736404181537,2.5722,194.47,194.41,6.50921222]
[1736404181738,2.5722,194.47,194.41,9.08211222]
[1736404183845,2.5722,194.47,194.41,6.50921222]
[1736404184041,2.5722,194.47,194.42,2.5728]
[1736404185238,5.48620513,194.49,194.44,2.5725]
[1736404185239,8.05820513,194.49,194.44,2.5725]
[1736404185542,14.56741735,194.49,194.44,2.5725]
[1736404185840,14.56741735,194.49,194.45,2.5725]
[1736404186839,2.5721,194.48,194.44,2.5726]
[1736404188135,5.48620513,194.49,194.43,6.50921222]
[1736404188342,8.05820513,194.49,194.45,2.5723]
[1736404188846,8.05820513,194.49,194.46,2.5723]
[1736404190845,5.48620513,194.49,194.43,6.50921222]
[1736404191643,5.48620513,194.49,194.44,2.5725]
[1736404191848,5.48620513,194.49,194.43,6.50921222]
[1736404192244,5.48620513,194.49,194.44,2.5725]
[1736404192444,8.05820513,194.49,194.43,6.50921222]
[1736404194146,8.05820513,194.49,194.45,2.5724]
[1736404194345,8.05820513,194.49,194.43,6.50921222]
[1736404194549,2.5721,194.48,194.43,6.50921222]
[1736404194852,6.50921222,194.48,194.43,6.50921222]
[1736404196149,9.08131222,194.48,194.44,2.5726]
[1736404196351,5.48620513,194.49,194.43,6.50921222]
[1736404197451,8.05810513,194.49,194.45,2.5723]
[1736404198752,5.48620513,194.49,194.46,2.5722]
[1736404200051,5.48620513,194.49,194.47,2.5721]
[1736404200253,6.50921222,194.5,194.47,2.5721]
[1736404200647,9.08081222,194.52,194.48,2.572]
[1736404200848,9.08081222,194.52,194.45,6.50921222]
[1736404201154,2.5714,194.53,194.5,2.5718]
[1736404201446,3.0134,194.54,194.47,6.50921222]
[1736404201647,7.93327475,194.58,194.49,6.50921222]
[1736404201853,7.93327475,194.58,194.51,6.50921222]
[1736404202058,64.00309057,194.59,194.53,6.50921222]
[1736404202250,70.51230279,194.59,194.55,2.5711]
[1736404203144,70.51230279,194.59,194.53,6.50921222]
[1736404203344,70.51230279,194.59,194.54,2.5713]
[1736404203754,73.08290279,194.59,194.53,6.50921222]
[1736404203955,70.51230279,194.59,194.53,6.50921222]
[1736404204146,6.50921222,194.61,194.55,6.50921222]
[1736404204350,6.50921222,194.61,194.58,2.5707]
[1736404204751,2.5702,194.63,194.58,2.5707]
[1736404204948,6.50921222,194.62,194.58,2.5707]
[1736404205153,6.50921222,194.62,194.55,6.50921222]
[1736404205352,6.50921222,194.6,194.55,6.50921222]
[1736404205554,6.50921222,194.6,194.5,2.9]
[1736404205858,6.50921222,194.6,194.54,6.50921222]
[1736404206252,6.50921222,194.6,194.56,2.571]
[1736404206854,6.50921222,194.6,194.52,6.50921222]
[1736404207053,9.08011222,194.58,194.53,2.5714]
[1736404207854,2.5709,194.57,194.52,9.08071222]
[1736404208054,6.50921222,194.58,194.52,2.5715]
[1736404208251,6.50921222,194.56,194.5,6.50921222]
[1736404208451,6.50921222,194.54,194.48,9.08111222]
[1736404208650,6.50921222,194.52,194.46,6.50921222]
[1736404208858,6.50921222,194.52,194.47,2.5721]
[1736404209050,6.50921222,194.52,194.46,6.50921222]
[1736404209251,2.5714,194.53,194.46,6.50921222]
[1736404209451,6.50921222,194.54,194.48,6.50921222]
[1736404209955,6.50921222,194.54,194.5,2.5718]
[1736404210352,6.50921222,194.54,194.48,6.50921222]
[1736404211356,2.9,194.55,194.48,6.50921222]
[1736404211553,6.50921222,194.56,194.5,6.50921222]
[1736404211757,6.50921222,194.58,194.5,6.50921222]
[1736404211953,6.50921222,194.58,194.52,6.50921222]
[1736404212359,3.0298,194.59,194.54,6.50921222]
[1736404212560,1.5594,194.59,194.54,9.40921222]
[1736404213154,1.5594,194.59,194.56,2.5709]
[1736404213662,2.5704,194.61,194.56,2.5709]
[1736404213866,9.07961222,194.61,194.54,9.40921222]
[1736404214065,9.07961222,194.61,194.55,2.5711]
[1736404214557,2.5704,194.61,194.54,9.40921222]
[1736404214758,2.5704,194.61,194.56,2.571]
[1736404215259,2.5706,194.59,194.55,2.5711]
[1736404216463,6.50921222,194.62,194.54,6.50921222]
[1736404216663,6.50921222,194.62,194.53,2.9]
[1736404216664,9.07941222,194.62,194.58,2.5707]
[1736404217267,6.50921222,194.62,194.58,2.5707]
[1736404217768,6.50921222,194.64,194.58,6.50921222]
[1736404218164,6.50921222,194.66,194.58,6.50921222]
[1736404218358,0.92798939,194.65,194.58,9.40921222]
[1736404218857,9.07891222,194.66,194.61,2.5702]
[1736404219565,6.50921222,194.66,194.61,2.5702]
[1736404219764,6.50921222,194.64,194.6,2.5705]
[1736404220069,6.50921222,194.62,194.55,2.9]
[1736404220266,9.07951222,194.62,194.55,9.40921222]
[1736404220862,2.5704,194.61,194.57,2.5708]
[1736404221063,2.5704,194.61,194.55,9.40921222]
[1736404221763,2.5704,194.61,194.56,2.5709]
[1736404222164,2.5704,194.61,194.55,6.50921222]
[1736404222364,2.5704,194.61,194.55,9.40921222]
[1736404222869,6.50921222,194.62,194.55,9.40921222]